Cogmind - Beta 13 @@@ ROGUE MODE // 2024.04.04 @ 18:14:16 Player: Username Result: Destroyed by S-10 Pest with Light Assault Rifle Performance ------------- Evolutions (2) 1000 Regions Visited (4) 800 Robots Destroyed (41) 205 Value Destroyed (890) 890 Prototype IDs (5) 100 Alien Tech Used (0) 0 Bonus (0) 0 TOTAL SCORE: 2995 Bonus ------- None Cogmind --------- Core Integrity 0/550 Matter 290/300 Energy 93/100 System Corruption 1% Temperature Cool (0) Movement Core (50) Location -8/Materials Parts ------- > --- POWER (2) -------- (None) > --- PROPULSION (2) --- (None) > --- UTILITY (5) ------ Visual Processing Unit > --- WEAPON (2) ------- (None) > --- INVENTORY (5) ---- Carbon-fiber Leg High-capacity Matter Pod (200) Peak State ------------ > --- POWER ------------ Light Ion Engine > --- PROPULSION ------- Improved Flight Unit Improved Flight Unit > --- UTILITY ---------- Weight Redist. System Visual Processing Unit Signal Interpreter Light Armor Plating Hardlight Generator > --- WEAPON ----------- Light Assault Rifle Improved Assault Rifle > --- INVENTORY -------- Light Ion Engine Improved Flight Unit High-capacity Matter Pod Hammer [Rating: 20] Favorites ----------- Power Ion Engine Engine Ion Engine Propulsion Light Treads Treads Light Treads Leg Aluminum Leg Flight Unit Improved Flight Unit Utility Signal Interpreter Device Sensor Array Storage Medium Storage Unit Processor Signal Interpreter Protection Light Armor Plating Weapon Assault Rifle Energy Gun Small Laser Energy Cannon Advanced Beam Cannon Ballistic Gun Assault Rifle Launcher Rocket Launcher Impact Weapon Hammer Build | -11 -10 -10 -9 -8 ------- Run | Yrd Mat Min Mat Mat Slots Evolved 4 | . . . 2 2 Power 1 | . . . . 1 Propulsion . | . . . . . Utility 3 | . . . 2 1 Weapon . | . . . . . Parts Attached 52 | 6 2 4 33 7 Power 11 | 1 . 2 6 2 Engine 11 | 1 . 2 6 2 Core . | . . . . . Reactor . | . . . . . Propulsion 9 | 2 . 1 5 1 Treads 4 | 2 . 1 1 . Leg 2 | . . . 2 . Wheel . | . . . . . Hover . | . . . . . Flight 3 | . . . 2 1 Utility 18 | 1 2 . 13 2 Device 4 | . . . 3 1 Storage 6 | 1 1 . 4 . Processor 3 | . 1 . 2 . Hackware . | . . . . . Protection 5 | . . . 4 1 Artifact . | . . . . . Weapon 14 | 2 . 1 9 2 Energy Gun 1 | . . 1 . . Energy Cannon 1 | . . . 1 . Ballistic Gun 6 | 2 . . 3 1 Ballistic Cannon . | . . . . . Launcher 4 | . . . 4 . Special Weapon . | . . . . . Impact Weapon 2 | . . . 1 1 Slashing Weapon . | . . . . . Piercing Weapon . | . . . . . Special Melee Weapon . | . . . . . Unidentified Prototypes 3 | . . . 3 . Parts Lost 29 | . . 5 10 14 Power 7 | . . 2 2 3 Propulsion 6 | . . 1 2 3 Utility 8 | . . . 4 4 Weapon 8 | . . 2 2 4 Highest Loss Streak 8 | . . 3 8 5 To Critical Strikes 2 | . . . 1 1 Average Slot Usage (%) 82 | . 98 98 72 53 Engine 10 | . 14 13 9 3 Treads 16 | . 28 28 7 . Leg 1 | . . . 3 . Flight 4 | . . . 7 12 Device 2 | . . . 4 7 Storage 9 | . 14 14 7 . Processor 12 | . 12 14 9 17 Protection 3 | . . . 9 1 Energy Gun 1 | . . . 3 . Ballistic Gun 16 | . 28 26 5 4 Launcher 1 | . . . 3 . Impact Weapon 1 | . . . 2 4 Naked Turns 2 | . . . 2 . Heaviest Build 22 | 14 19 19 22 15 Greatest Support 40 | 40 40 40 40 16 Greatest Overweight (x) 3 | . . . 3 . Average Overweight (x) . | . . . . . Largest Inventory Capacity 10 | 8 10 10 10 5 Average Capacity 7 | 7 9 10 7 5 Most Carried 10 | 2 10 10 7 5 Average Carried 5 | . 6 9 4 2 Final Capacity 10 | 8 10 10 5 5 Final Carried 10 | 2 10 8 5 2 Class Distribution -------------------- 67% | Mutant 32% | Scavenger-Mutant Dominant Class ---------------- Mutant | -10/Materials Mutant | -10/Mines Scavenger-Mutant | -9/Materials Scavenger-Mutant | -8/Materials Resources | -11 -10 -10 -9 -8 ----------- Run | Yrd Mat Min Mat Mat Matter Collected 1704 | 278 291 501 520 114 Remotely . | . . . . . Salvage Created 1490 | 87 276 352 508 267 Parts 64 | 3 23 8 25 5 Haulers Intercepted 3 | . 1 . 2 . Recyclers Shooed 5 | . . 3 1 1 Parts Field Recycled . | . . . . . Retrieved Matter . | . . . . . Parts Self-Destructed . | . . . . . Prevented . | . . . . . Kills | -11 -10 -10 -9 -8 ------- Run | Yrd Mat Min Mat Mat Combat Hostiles Destroyed 27 | . 5 4 14 4 Melee 2 | . . . 1 1 Guns 13 | . 5 4 3 1 AOE 10 | . . . 10 . Classes Destroyed 12 | 1 5 1 4 1 Worker 1 | . 1 . . . Builder 1 | . . . 1 . Hauler 3 | . 1 . 2 . Recycler 8 | 1 1 4 1 1 Mechanic 1 | . . . 1 . Watcher 4 | . 2 . 1 1 Swarmer 7 | . 3 . 4 . Grunt 10 | . 2 . 7 1 Brawler 1 | . . . 1 . Sentry 4 | . . . 2 2 Hunter 1 | . . . . 1 Assembled 4 | . . 4 . . Best Kill Streak 8 | 1 4 2 8 2 Combat Bots Only 4 | . 3 2 4 1 Max Kills in Single Turn 3 | 1 1 1 3 1 Gunslinging . | . . . . . Exploded 3 | . . . 3 . Melee 1 | . . . 1 1 Uniques/NPCs Destroyed . | . . . . . Combat | -11 -10 -10 -9 -8 -------- Run | Yrd Mat Min Mat Mat Hostile Shots Fired 313 | . 19 52 101 141 Missed 115 | . 10 20 32 53 Damage Taken 2889 | . 90 709 947 1143 Core 1014 | . 19 73 371 551 Absorbed by Shields 96 | . . . . 96 Core Remaining (%) 56 | 100 . 63 7 . Volleys Fired 138 | 3 32 39 38 26 Largest 2 | 2 2 2 2 2 Hottest 56 | 40 40 40 56 43 Shots Fired 211 | 6 64 70 40 31 Gun 196 | 6 64 70 25 31 Cannon . | . . . . . Launcher 15 | . . . 15 . Special . | . . . . . Kinetic 181 | 6 64 70 10 31 Thermal 15 | . . . 15 . Explosive 15 | . . . 15 . Electromagnetic . | . . . . . Robot Hit Streak 9 | 5 9 4 6 6 Robot Miss Streak 7 | 1 7 5 5 1 Penetration Max . | . . . . . Secondary Targets 1 | . 1 . . . Max Gunslinging Chain 1 | . 1 . . . Shots Hit Robots 152 | 5 39 36 26 46 Core Hits 78 | 2 15 16 37 8 Critical Kills 1 | . . . . 1 Critical Parts Destroyed 2 | . . . . 2 Critical Strikes 3 | . . . . 3 Destroy 1 | . . . . 1 Smash 2 | . . . . 2 Melee Attacks 32 | . . . 4 28 Impact 32 | . . . 4 28 Slashing . | . . . . . Piercing . | . . . . . Sneak Attacks 4 | . . . 2 2 Combat Hostiles 1 | . . . . 1 Follow-up Attacks . | . . . . . Damage Inflicted 3090 | 62 484 459 1312 773 Guns 1405 | 62 483 458 212 190 Cannons . | . . . . . Explosions 941 | . . . 941 . Melee 700 | . . . 129 571 Ramming 44 | . 1 1 30 12 Kinetic 1272 | 62 483 458 79 190 Thermal 133 | . . . 133 . Explosive 941 | . . . 941 . Electromagnetic . | . . . . . Impact 700 | . . . 129 571 Slashing . | . . . . . Piercing . | . . . . . Highest Corruption 8 | . . . 8 1 Average Corruption 6 | . . . 7 1 Corruption Purged . | . . . . . Corruption Blocked . | . . . . . Effects 10 | . . . 10 . Message Errors 2 | . . . 2 . Matter Fused 4 | . . . 4 . Energy Discharges 2 | . . . 2 . Misfires 1 | . . . 1 . Alerts 1 | . . . 1 . Overload Shots . | . . . . . Overflow Damage 204 | . . . 83 121 Projectiles . | . . . . . Explosions 55 | . . . 55 . Melee 149 | . . . 28 121 Knockbacks 1 | . . . . 1 Impact 1 | . . . . 1 Kinetic . | . . . . . Secondary . | . . . . . Self-Inflicted Damage 119 | . . . 113 6 Shots 3 | . . . 3 . Rammed 20 | . 2 1 15 2 Targets Rammed 21 | . 2 1 16 2 Kicked . | . . . . . Crushed 1 | . . . 1 . Highest Temperature 39 | . . 16 39 11 Average Temperature 11 | . . 8 16 4 Received Heat Transfer 881 | . 30 100 372 379 Siege Activations . | . . . . . Robots Corrupted . | . . . . . Combat Hostiles . | . . . . . Parts Fried 6 | . . . 2 4 Impact Corruptions 7 | . . . 2 5 Robots Melted . | . . . . . Combat Hostiles . | . . . . . Parts Melted 1 | . . . 1 . Heat Transferred 300 | . . . 300 . Parts Sabotaged . | . . . . . Parts Stolen . | . . . . . Parts Stripped . | . . . . . Power Chain Reactions . | . . . . . Alert | -11 -10 -10 -9 -8 ------- Run | Yrd Mat Min Mat Mat Peak Influence 367 | 5 121 66 367 303 Initial 154 | . 3 16 . 154 Average 97 | 1 35 36 143 217 Maximum Alert Level 1 | . . . 1 1 Low Security (%) 79 | 100 100 100 64 45 Level 1 20 | . . . 35 54 Level 2 . | . . . . . Level 3 . | . . . . . Level 4 . | . . . . . Level 5 . | . . . . . High Security . | . . . . . Max Security . | . . . . . Squads Dispatched 9 | . 2 . 2 5 Investigation 1 | . . . . 1 Extermination . | . . . . . Reinforcement 5 | . 2 . 2 1 Assault . | . . . . . Garrison 3 | . . . . 3 Intercept . | . . . . . Searches Triggered . | . . . . . Construction Impeded 1 | . . . 1 . Haulers Reinforced . | . . . . . Active Scanning Responses . | . . . . . Cargo Convoy Interrupts . | . . . . . Stealth | -11 -10 -10 -9 -8 --------- Run | Yrd Mat Min Mat Mat Distress Signals 8 | . . 2 4 2 Communications Jammed . | . . . . . Distress Signals . | . . . . . Times Spotted 74 | . 11 15 26 22 Peak Tracking Total 18 | . 3 5 7 18 Tactical Retreats 7 | . . 3 2 2 Traps | -11 -10 -10 -9 -8 ------- Run | Yrd Mat Min Mat Mat Traps Triggered 1 | . . . . 1 Indirectly . | . . . . . Trap Hack Attempts . | . . . . . Triggered . | . . . . . Disarmed . | . . . . . Reprogrammed . | . . . . . Reused . | . . . . . Traps Extracted . | . . . . . Installed . | . . . . . Triggered . | . . . . . Machines | -11 -10 -10 -9 -8 ---------- Run | Yrd Mat Min Mat Mat Machines Disabled 5 | . . . 5 . Max in Single Turn 1 | . . . 1 . Machines Repaired . | . . . . . Machines Dismantled . | . . . . . Machines Sabotaged . | . . . . . Overloaded Fab Kills . | . . . . . Hacking | -11 -10 -10 -9 -8 --------- Run | Yrd Mat Min Mat Mat Machines Accessed 6 | . 3 . 2 1 Terminals 6 | . 3 . 2 1 Fabricators . | . . . . . Repair Stations . | . . . . . Recycling Units . | . . . . . Scanalyzers . | . . . . . Garrison Access . | . . . . . Total Hacks 16 | . 7 . 6 3 Successful 7 | . 2 . 4 1 Failed 9 | . 5 . 2 2 Catastrophic 1 | . . . . 1 Database Lockouts . | . . . . . Manual . | . . . . . Terminals 16 | . 7 . 6 3 Fabricators . | . . . . . Repair Stations . | . . . . . Recycling Units . | . . . . . Scanalyzers . | . . . . . Garrison Access . | . . . . . Terminal Hacks 7 | . 2 . 4 1 Robot Analysis 1 | . . . 1 . Prototype ID Bank 1 | . . . 1 . Unreport Threat 1 | . 1 . . . Locate Traps 1 | . 1 . . . Recall Investigation 1 | . . . 1 . Registered Components 1 | . . . . 1 Registered Prototypes 1 | . . . 1 . Fabricator Hacks . | . . . . . Repair Station Hacks . | . . . . . Recycling Unit Hacks . | . . . . . Scanalyzer . | . . . . . Garrison Access Hacks . | . . . . . Unauthorized Hacks . | . . . . . Terminals . | . . . . . Fabricators . | . . . . . Repair Stations . | . . . . . Recycling Units . | . . . . . Scanalyzers . | . . . . . Garrison Access . | . . . . . Data Cores Recovered . | . . . . . Used . | . . . . . Hacking Detections 3 | . 2 . 1 . Full Trace Events . | . . . . . Feedback Events . | . . . . . Feedback Blocked . | . . . . . Robot Schematics Acquired . | . . . . . Robots Built . | . . . . . Authchips . | . . . . . Time . | . . . . . Total Robot Build Rating . | . . . . . Part Schematics Acquired . | . . . . . Parts Built . | . . . . . Authchips . | . . . . . Time . | . . . . . Total Part Build Rating . | . . . . . Parts Repaired . | . . . . . Time . | . . . . . Parts Recycled . | . . . . . Recycled Matter . | . . . . . Retrieved Matter . | . . . . . Retrieved Components . | . . . . . Parts Scanalyzed . | . . . . . Part Schematics Acquired . | . . . . . Parts Damaged . | . . . . . Bothacking | -11 -10 -10 -9 -8 ------------ Run | Yrd Mat Min Mat Mat Used RIF Installer . | . . . . . Robots Hacked . | . . . . . Non-combat . | . . . . . Combat . | . . . . . Robot Hacks Applied . | . . . . . Relay Couplers Released . | . . . . . Fabnet Peak Effective % . | . . . . . Robots Rewired . | . . . . . Allies Hacked . | . . . . . Hacks Repelled . | . . . . . Allies | -11 -10 -10 -9 -8 -------- Run | Yrd Mat Min Mat Mat Total Allies . | . . . . . Largest Group . | . . . . . Highest-Rated Group . | . . . . . Highest-Rated Ally . | . . . . . Total Orders . | . . . . . Ally Attacks . | . . . . . Total Damage . | . . . . . Kills . | . . . . . Allies Corrupted . | . . . . . Allies Melted . | . . . . . Intel | -11 -10 -10 -9 -8 ------- Run | Yrd Mat Min Mat Mat Robot Analysis Total 1 | . . . 1 . Derelict Logs Recovered . | . . . . . Drone Launches . | . . . . . Drone Recoveries . | . . . . . Exploration | -11 -10 -10 -9 -8 ------------- Run | Yrd Mat Min Mat Mat Turns Passed 1993 | 85 535 414 647 312 Spaces Moved 1403 | 41 263 186 604 309 Core 112 | 2 . . 44 66 Treads 592 | 39 263 186 104 . Legs 80 | . . . 80 . Wheels . | . . . . . Hover . | . . . . . Flight 619 | . . . 376 243 Fastest Speed 37 | 50 160 160 37 37 Average Speed 96 | 154 160 160 73 41 Slowest Speed 260 | 160 160 160 260 50 Overloaded Moves . | . . . . . Propulsion Burnouts . | . . . . . Robots Hopped 13 | . . . 12 1 Cave-ins Triggered . | . . . . . Exploration Rate (%) 25 | 5 39 26 36 23 Regions Visited 4 Branch Regions 1 Pre-discovered Areas . | . . . . . Known Exits Taken 3 | . 1 1 1 . Unknown Exits Taken 1 | 1 . . . . Scrap Searched 1 | . . 1 . . Spaces Dug . | . . . . . Terrain Destroyed 111 | . . . 111 . Melee . | . . . . . Projectile . | . . . . . AOE 111 | . . . 111 . Terrain Rammed . | . . . . . Walls Destroyed . | . . . . . Machines Disabled . | . . . . . Actions | -11 -10 -10 -9 -8 --------- Run | Yrd Mat Min Mat Mat Total 1759 | 57 313 232 739 418 Wait 64 | . . 2 20 42 Move 1375 | 40 262 185 581 307 Hop 11 | . . . 10 1 Pick Up 42 | 8 12 . 19 3 Fast Attach 5 | . . . 5 . Attach 35 | 6 1 2 19 7 Detach 7 | . . . 6 1 Swap 13 | . 1 2 9 1 Drop 16 | . 3 1 12 . Fire 138 | 3 32 39 38 26 Melee 32 | . . . 4 28 Ram 5 | . . . 3 2 Kick . | . . . . . Crush 16 | . 2 1 13 . Escape Stasis . | . . . . . Rewire . | . . . . . Trap . | . . . . . Miscellaneous . | . . . . . Route ------- -11/Scrapyard -10/Materials (discovered 2 exits: *Mat / *Min) -10/Mines -9/Materials -8/Materials History --------- Turn | Location | Event 18 | -11/Scrapyard | Discovered new exit (range 15) 86 | -11/Scrapyard | Entered Materials 140 | -10/Materials | Discovered new exit (range 5) 158 | -10/Materials | Identified exit to Mines 307 | -10/Materials | Discovered new exit (range 14) 318 | -10/Materials | Build established: Mutant 368 | -10/Materials | Identified exit to Materials 621 | -10/Materials | Entered Mines 740 | -10/Mines | Discovered exit to Materials (range 9) 802 | -10/Mines | Assembled infested the area 807 | -10/Mines | Assisted by a Guerilla fighting off Assembled 1035 | -10/Mines | Entered Materials 1035 | -9/Materials | Evolved 2 slots: Utility x2 1063 | -9/Materials | Lost 3 parts (1p1n1w) 1293 | -9/Materials | Core integrity fell below 50% 1314 | -9/Materials | Core integrity fell below 20% 1328 | -9/Materials | Lost 8 parts (1p2n4u1w) 1610 | -9/Materials | Discovered new exit (range 18) 1622 | -9/Materials | Identified exit to Materials 1682 | -9/Materials | Entered another Materials area 1682 | -8/Materials | Evolved 2 slots: Power x1, Utility x1 1722 | -8/Materials | Garrison activated, responded to threat 1781 | -8/Materials | Lost 3 parts (2p1w) 1796 | -8/Materials | Build established: Scavenger-Mutant 1857 | -8/Materials | Lost 4 parts (1n3u) 1883 | -8/Materials | Core integrity fell below 50% 1964 | -8/Materials | Core integrity fell below 20% 1994 | -8/Materials | Destroyed by S-10 Pest with Light Assault Rifle Last Messages --------------- 5QY6JEDKLX: Hvy. Armor Plating Downloaded coordinate data. 01949_ Hammer destroyed. 01958_ Imp. Flight Unit destroyed. 01958_ Slammed into G-47 Trooper. 01960_ Acquired 4 matter. 01961_ Lgt. Ion Engine destroyed. 01967_ K-01 Serf collects debris. 01980_ Signal Interpreter destroyed. 01982_ Terminal disabled. 01982_ Critical hit (Burn: +37). 01984_ Slammed into U-05 Engineer. 01989_ Acquired Faulty Imp. Assault Rifle. 01990_ Faulty integration triggers meltdown. 01990_ Visual Processing Unit damaged (-5). 01990_ W-25 Informer sends out distress signal. 01992_ Triggered Alarm Trap. 01992_ An alarm sounds. 01992_ ALERT: Alarm triggered, dispatching investigation squad. Map ----- +----------------------------------------------------+ | ????????????????????????????????????????????? | | ????????????????????????????????????????????? | | ????????????????????????????????????????????? | | ????????????????????????????????????????????? | | ????????????????????????????????????????????? | | ????????????????????????????????????????????? | | ????????????????????????????????????????????? | | ????????????????????????????????????????????? | | ????????????????????????????????????????????? | | ????????????????????????????????????????????? | | ????????????????????????????????????????????? | | ????????????????????????????????????????????? | | ????????????????????????????????????????????? | | ????????????????????????????????????????????? | | ????????????????????????????????????????????? | | ????????????????????????????????????????????? | | ????????????????????????????????????????????? | | ????????????????????????????????????????????? | | ?????????????????????????????????##?????????? | | ???????????????????###???######## ##????????? | | ???????????????????# #???# #????????? | | ???????????????????# #???# #????????? | | ???????????????????# #???# #????????? | | ??????????????#????# #???# [[ #????????? | | ??????????????# ??##/##### [! #????????? | | ??????????????# ?#!@ # #????????? | | ??????????????# # """ # ?????????? | | ??????????????# #s R" #?? ???######??? | | ??????????????# sws""" #??##+##### #??? | | ??????????????# # s #### #??? | | ??????????????# m# s + % #??? | | ??????????????# ?########### "" #??? | | ??????????????? ???????????## "T #??? | | ?????????????? H????????????# " #??? | | ????????????? ??????????????# #??? | | ????????????? ??????????????# #??? | | ????????????##???????????????# #??? | | ?????????????????????????????# #??? | | ??????????????????????????#### """ #??? | | ??????????????????????????#""" """ #### | | ??????????????????????????#"R """ | | ??????????????????????????#""" """ | | ??????????????????????????#### | | ?????????????????????????????# ! | | ?????????????????????????????# ##### | | ?????????????????????????????#+############## | | ?????????????????????????????# ! #????? | | ?????????????????????????????# """ #????? | | ?????????????????????????????# "Y" #????? | | ?????????????????????????????# """ #????? | +----------------------------------------------------+ Best States ------------- Heat Dissipation 31 Energy Generation 15 Energy Capacity 265 Matter Stores 699 Matter Capacity 700 Sight Range 18 Robot Scan Range 14 Terrain Scan Density 10 Additional Mass Support 6 Armor Coverage 150 Evasion (%) 62 Recoil Reduction 2 Item Schematics ----------------- None Robot Schematics ------------------ None Fabricated ------------ Nothing Alien Tech Used ----------------- None Achievements -------------- None Challenges ------------ None Game ------ Seed ClaymoresFortressGuard Manual? 0 Play Time 00:40:13 Cumulative 27.0 hours Start 2024.04.04 @ 17:33:41 End 2024.04.04 @ 18:14:16 Sessions 1 Manual Loads 0 Difficulty Rogue Special Mode None Game No. 14 Rogue 14 Adventurer 0 Explorer 0 Win Type - Total 0 Types 0/0/0/0/0/0/0/0/0 Lore% 10 Gallery% 27 Achievement% 25 Wizard Run 0 Options --------- Layout 1 ASCII 0 Keyboard 0 Movement Mouse Keybinds 0 Fullscreen 2 Font 24/Crisp Map View 50x35 Zoom Use 0% Tactical HUD 1 Map Filters NONE Filters NONE Steam 1 RUN: 92a09f55-e456-43a9-856e-64f39bd24c5f